bitfinex-derivatives/quotes_ETHF0:USTF0_20250123
["timestamp","ask_amount","ask_price","bid_price","bid_amount"]
[1737596575708,0.004618,3247.4,3247.3,41.41617]
[1737596576414,0.004618,3247.4,3247.3,0.61617]
[1737596582717,0.61618,3247.3,3247.2,0.61618]
[1737596582916,1.10698,3247.3,3247.2,0.61618]
[1737596583618,0.4908,3247.3,3247.2,0.61618]
[1737596588319,1.10697,3247.3,3247.2,0.61618]
[1737596588519,0.61618,3247.2,3247.1,3.2078]
[1737596590321,0.61618,3247.2,3247.1,3.824]
[1737596590623,0.61618,3247.2,3247.1,3.2078]
[1737596591224,0.4908,3247.3,3247.0,0.61621]
[1737596591424,1.1063,3247.1,3247.0,0.61621]
[1737596592521,0.4901,3247.1,3246.8,3.2078]
[1737596592720,0.61624,3246.9,3246.8,3.2078]
[1737596594831,0.4947,3247.0,3246.7,0.61627]
[1737596595129,0.61626,3246.8,3246.7,0.61627]
[1737596595729,0.4947,3247.0,3246.6,0.61628]
[1737596595930,0.61628,3246.8,3246.6,0.61628]
[1737596596930,0.4947,3247.0,3246.6,0.61628]
[1737596596931,0.61628,3246.7,3246.6,0.61628]
[1737596598236,0.61628,3246.7,3246.6,3.82408]
[1737596599332,0.61627,3246.8,3246.7,0.61627]
[1737596599530,0.4901,3247.1,3246.6,3.2078]
[1737596599733,0.004618,3247.4,3247.0,3.2078]
[1737596599926,0.620778,3247.4,3247.0,3.2078]
[1737596600135,0.620768,3247.4,3247.3,0.61617]
[1737596600433,0.004618,3247.4,3246.8,0.61625]
[1737596600735,0.61624,3246.9,3246.8,0.61625]
[1737596601133,0.61624,3246.9,3246.7,1.10197]
[1737596601327,0.61624,3246.9,3246.8,0.61626]
[1737596601528,0.61623,3247.0,3246.8,0.61626]
[1737596601727,1.0048,3247.2,3246.9,0.61624]
[1737596601930,0.6162,3247.1,3246.9,0.61623]
[1737596603333,0.5184,3247.2,3246.7,0.4857]
[1737596603533,1.13459,3247.2,3247.1,0.6162]
[1737596603931,0.5147,3247.3,3246.7,2.8844721]
[1737596604237,0.004618,3247.4,3247.3,0.61617]
[1737596606134,0.620768,3247.4,3247.3,0.61617]
[1737596606337,0.004618,3247.4,3247.3,0.61617]
[1737596607135,0.004618,3247.4,3247.0,3.2078]
[1737596607338,0.004618,3247.4,3247.0,3.82401]
[1737596607637,0.6162,3247.1,3247.0,0.61621]
[1737596607836,0.532118,3247.4,3246.9,0.61624]
[1737596608033,0.61622,3247.0,3246.9,0.61624]
[1737596608731,0.532118,3247.4,3246.7,0.9836]
[1737596609033,0.532118,3247.4,3247.0,0.61622]
[1737596609034,0.61621,3247.1,3247.0,0.61622]
[1737596609537,0.61621,3247.1,3246.9,0.61623]
[1737596609735,0.9652,3247.0,3246.9,0.61623]
[1737596610641,0.6162,3247.2,3247.0,0.61621]
[1737596611936,0.9652,3247.3,3246.8,0.61625]
[1737596612243,3.9392421,3247.2,3246.6,3.2078]
[1737596612432,3.9392421,3247.2,3246.6,3.82409]
[1737596612433,0.61627,3246.8,3246.6,3.82409]
[1737596612634,2.3987721,3247.2,3246.6,3.82409]
[1737596612940,0.61628,3246.7,3246.6,3.82409]
[1737596613342,2.3987721,3247.2,3246.6,3.82409]
[1737596613542,0.61627,3246.8,3246.6,3.82409]
[1737596614341,0.61628,3246.7,3246.6,3.82409]
[1737596614743,0.004618,3247.4,3246.7,3.08142]
[1737596614941,0.004618,3247.4,3247.3,6.2227421]
[1737596615141,1e-08,3247.4,3247.3,6.2227421]
[1737596615443,0.4795,3248.1,3248.0,0.61603]
[1737596617046,0.61603,3248.0,3247.9,3.2078]
[1737596617253,1.62583,3248.0,3247.9,3.2078]
[1737596617539,1.0098,3248.0,3247.7,0.004618]
[1737596617735,0.61607,3247.8,3247.7,0.004618]
[1737596618341,1.62584,3248.0,3247.7,0.620688]
[1737596618541,1.0098,3248.0,3247.7,0.620688]
[1737596618746,0.61605,3247.9,3247.7,0.620688]
[1737596620649,0.61607,3247.8,3247.7,0.004618]
[1737596621350,0.61606,3247.9,3247.7,0.620708]
[1737596621549,0.61606,3247.9,3247.7,0.004618]
[1737596621850,0.61606,3247.9,3247.7,0.620698]
[1737596623654,1.0098,3248.0,3247.7,0.004618]
[1737596623856,0.5283,3248.0,3247.9,0.61605]
[1737596625252,0.61607,3247.8,3247.7,0.004618]
[1737596637964,3.2078,3247.8,3247.1,3.2078]
[1737596638263,0.61618,3247.2,3247.1,3.2078]
[1737596638454,0.61618,3247.2,3247.1,44.0078]
[1737596638660,0.61618,3247.2,3247.1,3.2078]
[1737596639966,0.61628,3246.7,3246.6,40.8]
[1737596640265,0.61628,3246.7,3246.6,41.4163]
[1737596641359,0.61628,3246.7,3246.6,40.8]
[1737596641560,0.6163,3246.6,3246.5,3.2078]
[1737596645365,0.61637,3246.2,3246.1,40.8]
[1737596646772,0.61639,3246.1,3246.0,3.2078]
[1737596647264,0.61639,3246.1,3246.0,44.0078]
[1737596647466,0.61639,3246.1,3246.0,44.62421]
[1737596648162,0.61639,3246.1,3246.0,44.0078]
[1737596648365,0.61639,3246.1,3246.0,3.2078]
[1737596652671,0.004618,3246.5,3246.4,0.61634]
[1737596652861,0.004618,3246.5,3246.4,3.82414]
[1737596653269,0.004618,3246.5,3246.4,44.62414]
[1737596658268,0.5099,3247.3,3247.2,0.61618]
[1737596658464,0.61614,3247.5,3247.0,3.2078]
[1737596658669,0.5099,3247.6,3247.0,3.2078]
[1737596658871,0.61619,3247.2,3247.1,0.6162]
[1737596659476,0.004618,3247.5,3247.0,3.2078]
[1737596659765,0.61618,3247.3,3247.1,0.61619]
[1737596660666,0.004618,3247.5,3247.1,0.61619]
[1737596660868,0.6162,3247.1,3247.0,3.2078]
[1737596661569,0.61624,3246.9,3246.8,0.004618]
[1737596663471,0.61636,3246.3,3246.1,1.09989]
[1737596663665,0.61636,3246.3,3246.2,3.2078]
[1737596664069,2.3987721,3246.7,3246.2,3.82417]
[1737596664070,0.61635,3246.4,3246.2,3.82417]
[1737596664276,0.61635,3246.3,3246.2,3.2078]
[1737596667176,6.1028721,3246.4,3245.9,3.2078]
[1737596667372,2.3987721,3246.1,3245.4,3.2078]
[1737596667881,0.61651,3245.5,3245.4,3.2078]
[1737596668881,0.61651,3245.6,3245.4,3.2078]
[1737596669279,0.5018,3245.5,3245.2,41.41655]
[1737596669478,1.11832,3245.5,3245.4,3.2078]
[1737596669880,0.004618,3245.8,3245.4,3.2078]
[1737596670083,0.004618,3245.8,3245.7,3.0152421]
[1737596670788,0.004618,3245.8,3245.7,43.8152421]
[1737596674786,0.004618,3245.8,3245.7,47.0230421]
[1737596679698,0.004618,3245.8,3245.7,44.62427]
[1737596689395,0.00305824,3245.8,3245.7,47.0230421]
[1737596693397,0.00305824,3245.8,3245.7,44.62427]
[1737596694396,0.00305824,3245.8,3245.7,45.07971598]
[1737596694904,0.00305824,3245.8,3245.7,45.52621564]
[1737596695707,0.00305824,3245.8,3245.7,4.72621741]
[1737596699316,0.00305824,3245.8,3245.7,4.72660056]
[1737596700815,0.00305824,3245.8,3245.7,1.51880056]
[1737596701515,0.00305824,3245.8,3245.7,42.31880056]
[1737596702013,0.00305824,3245.8,3245.7,0.44649966]
[1737596702218,2.3987721,3245.6,3244.8,3.2078]
[1737596702408,0.00305824,3245.8,3244.9,0.61661]
[1737596702409,0.61659,3245.1,3244.9,0.61661]
[1737596702607,1.62941,3245.0,3244.8,3.82443]
[1737596702909,1.0128,3245.0,3244.9,0.61662]
[1737596703115,0.5192,3245.0,3244.9,0.61662]
[1737596704323,1.11008,3245.7,3245.6,0.61649]
[1737596704704,0.4936,3245.7,3245.6,0.61649]
[1737596705513,1.0165,3245.7,3245.6,0.61649]
[1737596705711,1.5267,3245.7,3245.6,0.61649]
[1737596706314,2.14317,3245.7,3245.5,0.6165]
[1737596706508,1.5267,3245.7,3245.6,0.61649]
[1737596706911,0.5102,3245.7,3245.6,6.2230621]
[1737596707117,0.00305824,3245.8,3245.7,0.61647]
[1737596707507,0.00305824,3245.8,3245.6,3.2078]
[1737596707713,0.00305824,3245.8,3245.5,3.2078]
[1737596708113,0.61951824,3245.8,3245.6,0.61649]
[1737596708319,0.00305824,3245.8,3245.2,40.8]
[1737596708516,0.00305824,3245.8,3245.7,0.61647]
[1737596708718,0.00305824,3245.8,3245.5,0.61651]
[1737596709122,0.61649,3245.7,3245.5,0.61651]
[1737596709719,0.61648,3245.7,3245.5,0.61651]
[1737596710115,0.61648,3245.7,3245.4,3.2078]
[1737596710116,0.00305824,3245.8,3245.4,3.2078]
[1737596710322,0.61648,3245.7,3245.5,0.6165]
[1737596710723,0.61951824,3245.8,3245.6,0.61649]
[1737596711220,0.61647,3245.7,3245.6,0.61649]
[1737596711620,0.61951824,3245.8,3245.6,0.61649]
[1737596713316,0.00305824,3245.8,3245.4,3.2078]
[1737596713525,0.61950824,3245.8,3245.6,0.61647]
[1737596713729,0.00305824,3245.8,3245.4,3.2078]
[1737596713920,0.61647,3245.7,3245.5,0.6165]
[1737596714124,0.61647,3245.7,3245.4,3.2078]
[1737596714315,0.00305824,3245.8,3245.4,3.2078]
[1737596714519,0.61648,3245.7,3245.5,0.6165]
[1737596715025,0.00305824,3245.8,3245.4,3.2078]
[1737596715026,0.61951824,3245.8,3245.6,0.61649]
[1737596715727,0.61951824,3245.8,3245.6,0.61647]
[1737596715928,0.61951824,3245.8,3245.7,0.61647]
[1737596715929,0.00305824,3245.8,3245.7,0.61647]
[1737596716322,0.00305824,3245.8,3245.4,3.2078]
[1737596716522,0.61951824,3245.8,3245.6,0.61648]
[1737596716722,0.61951824,3245.8,3245.4,3.82431]
[1737596716723,0.61647,3245.7,3245.4,3.82431]
[1737596716919,0.6165,3245.6,3245.4,3.2078]
[1737596717124,1.0317,3245.5,3245.4,3.2078]
[1737596717319,1.5568,3245.5,3245.4,3.2078]
[1737596717521,0.61656,3245.3,3244.9,3.2078]
[1737596717830,0.61655,3245.3,3245.0,0.6166]
[1737596718026,0.61655,3245.3,3245.2,0.61656]
[1737596718432,1.5568,3245.5,3244.9,3.2078]
[1737596718826,1.5568,3245.5,3245.4,0.61653]
[1737596719724,2.17331,3245.5,3245.4,0.61653]
[1737596720127,1.5568,3245.5,3245.4,0.61653]
[1737596720931,0.61654,3245.4,3245.2,0.61655]
[1737596721134,0.61654,3245.4,3245.3,0.61654]
[1737596721733,0.61654,3245.3,3245.2,0.61655]
[1737596721928,0.61654,3245.3,3244.9,3.2078]
[1737596722227,0.61654,3245.3,3245.1,0.61657]
[1737596722634,0.61654,3245.3,3245.0,0.6166]
[1737596722933,0.61654,3245.3,3245.1,0.61657]
[1737596723125,0.61654,3245.3,3244.9,3.2078]
[1737596723326,0.61654,3245.3,3245.2,0.61656]
[1737596723527,0.61657,3245.2,3245.1,0.61657]
[1737596723735,1.5568,3245.5,3244.9,3.2078]
[1737596723736,0.61656,3245.3,3244.9,3.2078]
[1737596723932,1.5568,3245.5,3245.1,0.61657]
[1737596724238,0.61656,3245.2,3245.1,0.61657]
[1737596724426,1.5568,3245.5,3244.9,3.2078]
[1737596724627,0.61655,3245.3,3245.2,0.61656]
[1737596724930,0.61655,3245.3,3245.1,0.61657]
[1737596725139,1.5568,3245.5,3244.9,3.2078]
[1737596725534,0.61657,3245.2,3245.1,0.61658]
[1737596725735,0.61659,3245.1,3245.0,0.61659]
[1737596726231,0.61667,3244.7,3244.5,3.2078]
[1737596726432,0.61668,3244.6,3244.5,3.2078]
[1737596726630,1.14038,3244.6,3244.5,3.2078]
[1737596726835,0.5237,3244.6,3244.5,3.8245]
[1737596727033,1.14038,3244.6,3244.5,3.8245]
[1737596727432,1.14038,3244.6,3244.5,3.2078]
[1737596727632,1.14038,3244.6,3244.5,3.8245]
[1737596729635,2.9224721,3244.6,3244.0,0.5165]
[1737596729940,0.6168,3244.0,3243.8,0.61682]
[1737596730231,2.3987721,3244.3,3243.7,0.61684]
[1737596730232,0.61684,3243.8,3243.7,0.61684]
[1737596730433,1.0012,3243.9,3243.6,8.03391058]
[1737596730434,0.61685,3243.7,3243.6,8.03391058]
[1737596730636,0.61685,3243.7,3243.6,4.82611058]
[1737596730637,3.0156221,3243.7,3243.6,4.82611058]
[1737596731337,3.0156321,3243.7,3243.5,0.61688]
[1737596732140,3.0156321,3243.7,3243.1,40.8]
[1737596732141,2.3987721,3243.7,3243.1,40.8]
[1737596732336,3.0156321,3243.7,3243.5,0.61688]
[1737596732539,2.3987721,3243.7,3242.8,4.82611058]
[1737596732737,0.61698,3243.1,3242.8,5.44312058]
[1737596732937,0.9676,3243.0,3242.8,5.44312058]
[1737596733240,0.9676,3243.0,3242.8,45.62611058]
[1737596733241,1.58459,3243.0,3242.8,45.62611058]
[1737596733436,0.9676,3243.0,3242.8,45.62611058]
[1737596733641,0.9676,3243.0,3242.8,4.82611058]
[1737596733837,3.0157721,3242.9,3242.8,4.82611058]
[1737596734539,8.0157721,3242.9,3242.8,0.8389999]
[1737596734747,0.61704,3242.7,3242.6,7.23916588]
[1737596734942,3.87702929,3242.7,3242.6,5.75476588]
[1737596735139,3.87702929,3242.7,3242.4,9.65222117]
[1737596735140,8.25998929,3242.7,3242.4,9.65222117]
[1737596735336,8.25998929,3242.7,3242.1,5.62856015]
[1737596735337,4.7975442,3242.5,3242.1,5.62856015]
[1737596735641,8.0053442,3242.2,3240.7,0.61741]
[1737596735832,3.2078,3241.8,3241.3,3.084]
[1737596736034,3.2078,3241.8,3241.5,3.084]
[1737596736236,3.2078,3241.8,3241.4,0.5175]
[1737596736440,3.2078,3241.8,3241.6,3.084]
[1737596737345,0.62182542,3241.9,3241.6,3.084]
[1737596737532,0.00462542,3241.9,3241.6,3.084]
[1737596737945,0.62183542,3241.9,3241.6,3.084]
[1737596738140,0.00462542,3241.9,3241.8,3.084]
[1737596738938,0.00462542,3241.9,3241.8,3.70121]
[1737596739144,0.00462542,3241.9,3241.8,3.084]
[1737596739537,0.00462542,3241.9,3241.8,3.6086]
[1737596740137,0.00462542,3241.9,3241.8,4.22581]
[1737596740946,0.00462542,3241.9,3241.8,6.6245821]
[1737596741138,2.37808729,3242.1,3242.0,3.70117]
[1737596741339,5.16343411,3242.4,3242.3,3.70112]
[1737596741642,1.1194214,3242.4,3242.3,9.3076921]
[1737596741841,1.1194214,3242.4,3242.3,50.1076921]
[1737596742036,0.3229214,3242.4,3242.3,50.1076921]
[1737596742343,0.00462542,3242.7,3242.3,49.4905721]
[1737596742545,0.00462542,3242.7,3242.6,3.0158321]
[1737596742745,0.00462542,3242.7,3242.6,6.0998321]
[1737596744140,0.00462542,3242.7,3242.6,3.084]
[1737596744347,0.00462542,3242.7,3242.3,46.4065721]
[1737596744348,0.61706,3242.6,3242.3,3.2078]
[1737596744540,0.5193,3242.6,3242.3,6.2918]
[1737596744941,0.5193,3242.6,3242.3,6.9089]
[1737596745147,3.2078,3242.4,3242.0,0.00462542]
[1737596745449,3.8249,3242.4,3242.1,3.084]
[1737596746143,3.2078,3242.4,3242.1,3.70115]
[1737596747151,3.2078,3242.4,3242.1,3.084]
[1737596747544,0.61712,3242.3,3242.1,3.084]
[1737596747744,0.61715,3242.1,3242.0,0.00462542]
[1737596750247,5.0521262,3242.1,3241.2,0.61731]
[1737596750554,3.82506,3241.6,3241.4,3.084]
[1737596750754,3.2078,3241.6,3241.4,3.084]
[1737596750951,3.2078,3241.6,3241.2,0.61732]
[1737596751151,3.82506,3241.6,3241.3,3.084]
[1737596752259,3.2078,3241.6,3241.4,3.084]
[1737596752454,3.2078,3241.6,3241.5,3.70127]
[1737596753348,3.2078,3242.0,3241.5,3.084]
[1737596753548,3.2078,3242.0,3241.9,0.61719]
[1737596753748,3.2078,3242.4,3241.9,3.084]
[1737596753950,3.2078,3242.4,3242.1,3.084]
[1737596754143,3.2078,3242.4,3242.3,3.70112]
[1737596754349,0.00462542,3242.7,3242.6,0.61706]
[1737596754659,0.00462542,3242.7,3242.6,3.70106]
[1737596755154,0.00462542,3242.7,3242.6,4.19996]
[1737596756456,0.00462542,3242.7,3242.6,3.5829]
[1737596757055,0.62166542,3242.7,3242.6,3.5829]
[1737596757256,0.00462542,3242.7,3242.6,4.19996]
[1737596757456,0.62166542,3242.7,3242.6,3.5829]
[1737596757647,0.00462542,3242.7,3242.3,3.2078]
[1737596757849,0.6171,3242.4,3242.3,6.2918]
[1737596758049,3.2078,3242.4,3241.9,1.0229]
[1737596758250,3.2078,3242.0,3241.0,2.3987721]
[1737596758450,0.61722,3241.8,3241.7,3.084]
[1737596759258,0.61721,3241.8,3241.7,3.084]
[1737596760460,3.2078,3242.0,3241.7,3.084]
[1737596760660,3.82498,3242.0,3241.7,3.70122]
[1737596760959,3.2078,3242.0,3241.7,3.084]
[1737596761154,3.82498,3242.0,3241.7,3.70122]
[1737596761354,3.2078,3242.0,3241.7,3.084]
[1737596762462,0.61721,3241.8,3241.7,3.084]
[1737596763455,3.2078,3242.0,3241.2,0.61732]
[1737596763659,1.5048,3241.9,3241.4,3.084]
[1737596763857,0.61727,3241.5,3241.4,3.084]
[1737596764055,0.61732,3241.2,3241.1,0.5262]
[1737596764253,0.6174,3240.8,3240.5,0.61745]
[1737596764456,3.2078,3241.2,3240.8,3.084]
[1737596764662,0.61741,3240.8,3240.6,3.084]
[1737596764859,0.00462542,3241.1,3240.6,3.70143]
[1737596764860,0.61739,3240.9,3240.6,3.70143]
[1737596765058,0.61739,3240.9,3240.6,3.084]
[1737596765263,0.61737,3241.0,3240.7,0.61741]
[1737596765464,0.61737,3241.0,3240.6,3.084]
[1737596765465,0.61739,3240.9,3240.6,3.70143]
[1737596765660,1.53242542,3241.1,3240.7,0.61741]
[1737596765661,0.61737,3241.0,3240.7,0.61741]
[1737596766573,0.00462542,3241.1,3241.0,0.61736]
[1737596766867,0.00462542,3241.1,3241.0,3.70136]
[1737596767361,0.00462542,3241.1,3241.0,44.50136]
[1737596769868,3.2078,3241.6,3241.0,43.884]
[1737596770062,3.2078,3241.6,3241.5,3.70127]
[1737596771261,0.00462542,3241.9,3241.5,3.084]
[1737596771462,0.00462542,3241.9,3241.8,3.70121]
[1737596772068,0.00462542,3241.9,3241.8,6.62741615]
[1737596772270,5.9409229,3242.5,3242.4,0.6171]
[1737596772567,5.9409229,3242.5,3242.4,3.7011]
[1737596773363,4.34369748,3242.5,3242.4,6.9089]
[1737596773556,3.54739748,3242.5,3242.4,6.9089]
[1737596773755,2.75109748,3242.5,3242.4,6.9089]
[1737596773968,2.75109748,3242.5,3242.4,48.14725578]
[1737596774572,1.49529748,3242.5,3242.4,47.7089]
[1737596774865,0.85450748,3242.5,3242.4,52.7089]
[1737596775066,3.2078,3243.3,3243.2,0.61694]
[1737596775261,3.2078,3243.3,3243.2,2.8418071]
[1737596775660,3.2078,3243.3,3242.4,44.0078]
[1737596775661,0.61698,3243.1,3242.8,0.61701]
[1737596775866,0.61698,3243.1,3243.0,2.2248671]
[1737596776065,1.54237,3243.2,3242.5,2.2248671]
[1737596776267,0.61711,3242.4,3242.3,2.2248671]
[1737596776661,0.9967,3242.5,3242.0,0.00462542]
[1737596776861,0.61715,3242.1,3242.0,0.00462542]
[1737596778074,0.61715,3242.1,3242.0,2.22949252]
[1737596778967,0.61715,3242.1,3242.0,0.00462542]
[1737596779764,3.92290615,3242.5,3242.0,0.00462542]
[1737596779958,0.61715,3242.2,3242.0,0.00462542]
[1737596780171,0.61712,3242.3,3242.0,0.62179542]
[1737596780376,0.6171,3242.4,3242.3,2.2248671]
[1737596781266,3.92290615,3242.5,3242.0,0.00462542]
[1737596781468,0.61715,3242.1,3241.7,0.61722]
[1737596781670,3.92290615,3242.5,3241.8,2.2248671]
[1737596781868,0.61711,3242.4,3242.2,2.2248671]
[1737596782069,0.61711,3242.4,3242.2,2.8419971]
[1737596782276,1.61379,3242.5,3242.3,0.61711]
[1737596782574,0.61712,3242.3,3242.0,0.61716]
[1737596782769,3.82493,3242.2,3242.1,2.22949252]
[1737596783173,3.2078,3242.2,3242.1,2.84664252]
[1737596785273,3.2078,3242.2,3242.1,2.22949252]
[1737596785472,3.82493,3242.2,3242.1,2.22949252]
[1737596786166,3.2078,3242.2,3241.2,40.8]
[1737596786475,3.2078,3241.8,3241.2,2.2248671]
[1737596786671,0.61731,3241.3,3240.4,4.75148]
[1737596786877,0.61732,3241.2,3241.1,2.2248671]
[1737596787769,3.2078,3241.4,3240.9,0.00203808]
[1737596787976,0.61736,3241.0,3240.9,0.00203808]
[1737596788179,0.5174,3241.3,3240.9,0.00203808]
[1737596788376,0.61736,3241.1,3240.9,0.00203808]
[1737596788974,0.61736,3241.1,3241.0,2.2248671]
[1737596789272,0.5174,3241.3,3240.9,0.00203808]
[1737596789472,1.63206,3241.0,3240.9,0.00203808]
[1737596789673,1.63206,3241.0,3239.5,2.92620615]
[1737596789674,2.92620615,3240.9,3239.5,2.92620615]
[1737596789867,0.61753,3240.1,3240.0,2.2248671]
[1737596790069,3.2078,3240.5,3240.3,2.2248671]
[1737596790275,3.2078,3240.5,3239.6,40.8]
[1737596790474,0.61753,3240.2,3239.6,40.8]
[1737596790681,0.61748,3240.4,3240.2,2.2248671]
[1737596790882,0.6175,3240.3,3240.2,2.2248671]
[1737596791973,3.2078,3240.5,3240.2,2.2248671]
[1737596792178,3.82526,3240.5,3240.4,2.2248671]
[1737596793083,3.2078,3240.5,3240.4,2.2248671]
[1737596793676,3.2078,3240.5,3240.4,43.0248671]
[1737596793881,3.2078,3240.5,3240.4,43.6423471]
[1737596794380,3.82526,3240.5,3240.4,43.0248671]
[1737596794577,3.2078,3240.5,3239.9,0.61756]
[1737596794778,3.2078,3240.5,3240.2,2.2248671]
[1737596795082,0.6175,3240.3,3240.2,2.2248671]
[1737596795686,3.2078,3240.5,3240.2,2.2248671]
[1737596795877,3.82527,3240.5,3240.4,2.2248671]
[1737596796382,6.59843185,3240.3,3240.0,0.61755]
[1737596796583,1.09642,3240.2,3240.0,0.61754]
[1737596796784,0.4789,3240.2,3240.1,40.8]
[1737596797082,0.4789,3240.2,3240.1,43.0248671]
[1737596797284,0.4789,3240.2,3240.1,43.6423971]
[1737596797879,0.4789,3240.2,3240.1,40.8]
[1737596798084,0.61773,3239.1,3238.7,0.61779]
[1737596798375,0.5299,3239.0,3238.8,0.61777]
[1737596798878,1.14764,3239.0,3238.9,2.2248671]
[1737596799080,1.14764,3239.0,3238.5,2.2248671]
[1737596799081,0.61783,3238.6,3238.5,2.2248671]
[1737596799284,0.61789,3238.3,3237.8,0.61796]
[1737596799576,0.61789,3238.3,3237.4,7.24737529]
[1737596799577,0.61793,3238.1,3237.9,2.2248671]
[1737596799776,0.61792,3238.1,3238.0,2.2248671]
[1737596800178,3.2078,3238.2,3237.5,3.2078]
[1737596800383,0.61795,3238.0,3237.9,2.2248671]
[1737596800777,0.61795,3238.0,3237.5,0.61802]
[1737596800982,3.6976,3238.2,3237.9,2.2248671]
[1737596801376,3.6976,3238.2,3237.8,0.61797]
[1737596801377,3.2078,3238.2,3238.1,2.8427871]
[1737596801879,3.2078,3238.2,3238.1,43.0248671]
[1737596802180,3.2078,3238.2,3238.1,40.8]
[1737596802587,3.2078,3238.2,3238.1,43.0248671]
[1737596802880,3.2078,3238.2,3238.1,43.6427871]
[1737596806784,3.7344,3239.1,3238.1,43.0248671]
[1737596806985,0.61774,3239.0,3238.9,2.2248671]
[1737596807184,3.7301,3239.1,3239.0,2.8426071]
[1737596807385,3.2078,3239.5,3239.0,2.2248671]
[1737596807585,3.82547,3239.5,3239.1,2.8425871]
[1737596807789,0.61767,3239.4,3239.1,2.8425871]
[1737596807989,3.2078,3239.5,3239.1,2.8425871]
[1737596809092,0.61779,3238.8,3238.5,0.61784]
[1737596809287,0.61774,3239.0,3238.9,2.2248671]
[1737596809678,3.2078,3239.1,3238.9,2.2248671]
[1737596809883,3.2078,3239.1,3238.9,2.8426171]
[1737596810292,3.2078,3239.1,3239.0,0.61774]
[1737596810584,3.2078,3239.1,3239.0,2.2248671]
[1737596810991,3.2078,3239.1,3239.0,2.8426071]
[1737596811383,3.2078,3239.1,3239.0,2.2248671]
[1737596811588,3.82552,3239.1,3239.0,2.2248671]
[1737596812187,0.61778,3238.8,3238.5,0.61783]
[1737596812490,6.13400615,3239.1,3238.6,2.2248671]
[1737596812491,0.5097,3239.0,3238.6,2.2248671]
[1737596812693,0.61782,3238.6,3238.5,2.2248671]
[1737596812886,2.92620615,3238.7,3238.3,3.2078]
[1737596813082,3.54401615,3238.7,3238.6,2.2248671]
[1737596815092,6.13400615,3238.7,3238.6,2.2248671]
[1737596815391,6.13400615,3238.7,3237.9,40.8]
[1737596815589,0.61782,3238.6,3238.5,2.2248671]
[1737596816094,0.61782,3238.6,3237.5,3.2127]
[1737596816095,6.59670451,3238.6,3237.5,3.2078]
[1737596816289,0.61795,3238.0,3237.8,2.2248671]
[1737596816593,0.4817,3237.9,3237.8,2.2248671]
[1737596816791,1.09965,3237.9,3237.8,2.2248671]
[1737596816988,4.30746,3237.9,3237.6,0.618]
[1737596817192,3.6895,3237.9,3237.7,2.2248671]
[1737596817394,0.61797,3237.8,3237.7,2.2248671]
[1737596817585,0.61797,3237.8,3237.5,3.2078]
[1737596817897,0.61797,3237.8,3237.6,2.2248671]
[1737596818091,0.61799,3237.8,3237.6,2.2248671]
[1737596818284,0.61799,3237.8,3237.1,40.8]
[1737596818285,3.54419615,3237.7,3237.1,41.4181]
[1737596818489,0.61809,3237.2,3237.1,40.8]
[1737596818684,2.92620615,3237.3,3237.1,40.8]
[1737596818885,2.92620615,3237.3,3237.2,2.2248671]
[1737596819497,3.54427615,3237.3,3237.2,2.2248671]
[1737596820086,2.92620615,3237.3,3237.1,40.8]
[1737596820288,11.85288731,3237.3,3235.2,3.2078]
[1737596820490,2.92620615,3236.5,3236.1,0.6183]
[1737596820691,3.2078,3236.7,3235.7,3.2078]
[1737596821002,3.82599,3236.7,3235.7,3.2078]
[1737596821198,0.61821,3236.6,3235.7,3.2078]
[1737596821390,3.826,3236.7,3236.2,0.61827]
[1737596821591,3.2078,3236.7,3236.2,0.61827]
[1737596821797,3.82599,3236.7,3236.2,0.61826]
[1737596822096,3.82599,3236.7,3235.5,0.2373]
[1737596822097,0.5243,3237.4,3236.0,2.92620615]
[1737596822307,3.2124327,3237.5,3237.0,3.2078]
[1737596822308,0.0046327,3237.5,3237.0,3.2078]
[1737596822492,0.0046327,3237.5,3237.4,0.61805]
[1737596823089,0.0046327,3237.5,3237.4,41.41805]
[1737596824599,0.0046327,3237.5,3237.1,0.2329]
[1737596824894,0.0046327,3237.5,3237.3,0.61806]
[1737596825104,0.0046327,3237.5,3237.4,40.8]
[1737596825295,0.0046327,3237.5,3237.4,44.62585]
[1737596825499,0.5036,3238.4,3238.2,0.61788]
[1737596825798,0.5036,3238.4,3238.1,0.61791]
[1737596826097,0.5036,3238.4,3237.4,44.0078]
[1737596826303,0.61791,3238.2,3237.8,0.61797]
[1737596826501,2.92620615,3238.1,3237.4,44.0078]
[1737596826804,0.61797,3237.9,3237.7,0.0046327]
[1737596827100,0.61797,3237.8,3237.7,0.0046327]
[1737596828598,0.518,3237.9,3237.7,0.0046327]
[1737596828899,0.61797,3237.8,3237.7,0.0046327]
[1737596829491,0.518,3237.9,3237.7,0.0046327]
[1737596829900,1.13596,3237.9,3237.7,0.0046327]
[1737596830201,0.518,3237.9,3237.7,0.0046327]
[1737596830506,0.61797,3237.8,3237.7,0.0046327]
[1737596834699,0.518,3237.9,3237.0,3.2078]
[1737596834907,0.61811,3237.1,3237.0,3.2078]
[1737596835897,0.61811,3237.1,3236.3,40.8]
[1737596835898,0.61817,3236.8,3236.5,0.61821]
[1737596836203,0.5172,3237.0,3236.6,0.61819]
[1737596836393,0.5172,3237.0,3236.3,40.8]
[1737596836599,0.61823,3236.5,3236.2,3.82607]
[1737596837901,0.61826,3236.3,3236.1,0.61829]
[1737596838093,3.736,3236.6,3235.7,40.8]
[1737596838299,0.61831,3236.1,3235.8,0.61835]
[1737596838505,0.5209,3236.2,3235.7,40.8]
[1737596838704,0.61839,3235.7,3235.2,0.61847]
[1737596838904,3.2078,3236.0,3235.1,3.2078]
[1737596839111,3.2078,3236.0,3235.9,0.61834]
[1737596839304,3.82613,3236.0,3235.8,0.61835]